fUST/lending_fUST_20251201
["ID","MTS","AMOUNT","RATE_DAILY","PERIOD"]
[395222490,1764551642797,-300.0,0.00013269,2]
[395222491,1764551642809,-500.0,0.00013269,2]
[395222492,1764551642832,-163.97665724,0.00013269,2]
[395222493,1764551642867,-70.58665724,0.00013269,2]
[395222494,1764551642876,-2731.17,0.0001327,2]
[395222495,1764551642885,-644.24334276,0.0001327,2]
[395222496,1764551642895,-946.53665724,0.0001327,2]
[395222497,1764551642904,-160.77334276,0.0001327,2]
[395222601,1764552638626,-237.24737247,0.00012771,3]
[395222603,1764552638637,-353.67603643,0.00013144,2]
[395222606,1764552638649,-9.0765911,0.00013144,2]
[395222608,1764552638662,-248.9234089,0.00013144,2]
[395222610,1764552638673,-71.87468839,0.00013166,2]
[395222612,1764552638687,-1718.16338876,0.00013166,2]
[395222615,1764552638699,-166.53369525,0.00013167,2]
[395222618,1764552638720,-666.0,0.00013261,2]
[395222621,1764552638736,-300.0,0.00013265,2]
[395222623,1764552638751,-500.0,0.00013265,2]
[395222625,1764552638764,-152.0137863,0.00013265,2]
[395222628,1764552638776,-500.0,0.00013265,2]
[395222630,1764552638788,-620.09716158,0.00013265,2]
[395222632,1764552638801,-500.0,0.00013266,2]
[395222635,1764552638815,-795.72,0.00013266,2]
[395222637,1764552638829,-500.0,0.00013266,2]
[395222639,1764552638844,-1573.76,0.00013266,2]
[395222642,1764552638858,-1037.9,0.00013266,2]
[395222644,1764552638873,-736.5,0.00013266,2]
[395222646,1764552638887,-4537.48,0.00013266,2]
[395222649,1764552638902,-500.0,0.00013266,2]
[395222651,1764552638918,-500.0,0.00013266,2]
[395222654,1764552638939,-1111.26,0.00013266,2]
[395222656,1764552638955,-9618.89,0.00013266,2]
[395222658,1764552638971,-1832.59,0.00013266,2]
[395222661,1764552638988,-7872.83,0.00013266,2]
[395222663,1764552639003,-500.0,0.00013266,2]
[395222665,1764552639018,-500.0,0.00013266,2]
[395222668,1764552639032,-840.09,0.00013266,2]
[395222670,1764552639045,-3459.07,0.00013266,2]
[395222672,1764552639063,-500.0,0.00013266,2]
[395222675,1764552639078,-1451.11,0.00013266,2]
[395222677,1764552639093,-500.0,0.00013266,2]
[395222679,1764552639107,-605.52,0.00013266,2]
[395222681,1764552639121,-500.0,0.00013266,2]
[395222684,1764552639135,-752.48,0.00013266,2]
[395222686,1764552639148,-500.0,0.00013266,2]
[395222688,1764552639165,-500.0,0.00013266,2]
[395222691,1764552639181,-500.47126686,0.00013266,2]
[395222693,1764552639194,-500.0,0.00013266,2]
[395222695,1764552639212,-313.312118,0.00013266,2]
[395222698,1764552639226,-500.0,0.00013266,2]
[395222700,1764552639240,-3608.1,0.00013266,2]
[395222703,1764552639254,-500.0,0.00013266,2]
[395222705,1764552639269,-500.0,0.00013266,2]
[395222707,1764552639282,-512.13040118,0.00013266,2]
[395222709,1764552639295,-500.0,0.00013266,2]
[395222712,1764552639308,-500.14407628,0.00013266,2]
[395222714,1764552639321,-500.70639276,0.00013266,2]
[395222717,1764552639334,-876.87,0.00013266,2]
[395222719,1764552639347,-501.61530633,0.00013266,2]
[395222721,1764552639359,-769.65,0.00013266,2]
[395222724,1764552639374,-500.0,0.00013266,2]
[395222726,1764552639388,-500.0,0.00013266,2]
[395222728,1764552639401,-510.71,0.00013266,2]
[395222730,1764552639415,-504.09473117,0.00013266,2]
[395222733,1764552639432,-500.0,0.00013266,2]
[395222735,1764552639444,-468.51185187,0.00013266,2]
[395222738,1764552639462,-39.87863649,0.00013266,2]
[395222740,1764552639476,-2267.64,0.00013266,2]
[395222742,1764552639489,-50000.0,0.00013266,2]
[395222745,1764552639501,-500.0,0.00013267,2]
[395222747,1764552639514,-4281.95,0.00013267,2]
[395222749,1764552639530,-500.0,0.00013267,2]
[395222752,1764552639543,-500.0,0.00013267,2]
[395222754,1764552639555,-608.23522501,0.00013267,2]
[395222756,1764552639568,-500.0,0.00013267,2]
[395222758,1764552639581,-513.37358214,0.00013267,2]
[395222761,1764552639594,-500.0,0.00013267,2]
[395222763,1764552639606,-1012.23,0.00013267,2]
[395222765,1764552639619,-1233.34,0.00013267,2]
[395222767,1764552639632,-986.61,0.00013267,2]
[395222770,1764552639646,-1663.72,0.00013267,2]
[395222772,1764552639660,-3771.91,0.00013267,2]
[395222774,1764552639673,-1955.92,0.00013267,2]
[395222776,1764552639692,-848.81,0.00013267,2]
[395222779,1764552639705,-500.0,0.00013267,2]
[395222781,1764552639718,-3134.92,0.00013267,2]
[395222783,1764552639731,-2565.02,0.00013267,2]
[395222785,1764552639743,-500.0,0.00013267,2]
[395222787,1764552639755,-500.0,0.00013267,2]
[395222790,1764552639766,-500.0,0.00013267,2]
[395222792,1764552639780,-1084.85,0.00013267,2]
[395222794,1764552639791,-2933.03,0.00013267,2]
[395222796,1764552639802,-2720.38,0.00013267,2]
[395222799,1764552639814,-500.0,0.00013267,2]
[395222801,1764552639826,-500.0,0.00013267,2]
[395222803,1764552639838,-500.0,0.00013267,2]
[395222805,1764552639849,-500.0,0.00013267,2]
[395222807,1764552639862,-2687.65,0.00013267,2]
[395222809,1764552639873,-500.0,0.00013267,2]
[395222812,1764552639885,-3196.75,0.00013267,2]
[395222814,1764552639896,-760.79,0.00013267,2]
[395222816,1764552639907,-500.0,0.00013267,2]
[395222818,1764552639918,-762.39,0.00013267,2]
[395222820,1764552639932,-500.0,0.00013267,2]
[395222822,1764552639944,-1652.85,0.00013267,2]
[395222824,1764552639954,-847.94,0.00013267,2]
[395222826,1764552639965,-4966.58,0.00013267,2]
[395222829,1764552639978,-7231.51,0.00013267,2]
[395222831,1764552639990,-1574.06,0.00013267,2]
[395222833,1764552640002,-665.45,0.00013267,2]
[395222835,1764552640014,-1053.46,0.00013267,2]
[395222837,1764552640027,-1585.23,0.00013267,2]
[395222839,1764552640040,-500.0,0.00013268,2]
[395222841,1764552640053,-500.0,0.00013268,2]
[395222843,1764552640064,-500.0,0.00013268,2]
[395222846,1764552640076,-500.0,0.00013268,2]
[395222848,1764552640089,-500.0,0.00013268,2]
[395222850,1764552640105,-506.68,0.00013268,2]
[395222852,1764552640124,-500.0,0.00013268,2]
[395222854,1764552640135,-500.0,0.00013268,2]
[395222856,1764552640146,-500.0,0.00013268,2]
[395222858,1764552640158,-500.0,0.00013268,2]
[395222860,1764552640169,-500.0,0.00013268,2]
[395222862,1764552640185,-500.0,0.00013268,2]
[395222864,1764552640197,-500.0,0.00013268,2]
[395222867,1764552640208,-500.0,0.00013268,2]
[395222869,1764552640220,-500.0,0.00013268,2]
[395222871,1764552640231,-500.0,0.00013268,2]
[395222873,1764552640243,-500.0,0.00013268,2]
[395222875,1764552640254,-685.25,0.00013268,2]
[395222878,1764552640265,-500.0,0.00013268,2]
[395222880,1764552640277,-500.0,0.00013268,2]
[395222882,1764552640290,-2120.64,0.00013268,2]
[395222884,1764552640301,-500.0,0.00013268,2]
[395222886,1764552640311,-662.73,0.00013268,2]
[395222888,1764552640322,-500.0,0.00013268,2]
[395222891,1764552640333,-1078.34,0.00013268,2]
[395222893,1764552640344,-1402.63,0.00013268,2]
[395222895,1764552640355,-956.92,0.00013268,2]
[395222897,1764552640365,-500.0,0.00013268,2]
[395222899,1764552640377,-500.0,0.00013268,2]
[395222901,1764552640388,-500.0,0.00013268,2]
[395222944,1764552640809,-500.0,0.00013268,2]
[395222947,1764552640836,-500.0,0.00013268,2]
[395222950,1764552640850,-500.0,0.00013268,2]
[395222952,1764552640859,-596.73,0.00013268,2]
[395222953,1764552640869,-500.0,0.00013268,2]
[395222955,1764552640878,-500.0,0.00013268,2]
[395222957,1764552640887,-500.0,0.00013268,2]
[395222959,1764552640897,-744.73,0.00013268,2]
[395222961,1764552640906,-500.0,0.00013268,2]
[395222963,1764552640916,-603.41,0.00013268,2]
[395222965,1764552640926,-500.0,0.00013268,2]
[395222967,1764552640936,-500.0,0.00013268,2]
[395222970,1764552640945,-500.0,0.00013268,2]
[395222971,1764552640955,-500.0,0.00013268,2]
[395222973,1764552640964,-722.06,0.00013268,2]
[395222975,1764552640973,-500.0,0.00013268,2]
[395222977,1764552640983,-500.0,0.00013268,2]
[395222979,1764552640992,-500.0,0.00013268,2]
[395222981,1764552641002,-500.0,0.00013268,2]
[395222983,1764552641012,-500.0,0.00013268,2]
[395222985,1764552641021,-500.0,0.00013268,2]
[395222987,1764552641031,-500.0,0.00013268,2]
[395222989,1764552641040,-500.0,0.00013268,2]
[395222991,1764552641050,-566.5125987,0.00013268,2]
[395222993,1764552641060,-500.0,0.00013268,2]
[395222995,1764552641069,-500.0,0.00013268,2]
[395222997,1764552641079,-804.05,0.00013268,2]
[395222999,1764552641088,-500.0,0.00013268,2]
[395223001,1764552641101,-500.0,0.00013268,2]
[395223003,1764552641109,-710.79,0.00013268,2]
[395223005,1764552641118,-1423.44,0.00013268,2]
[395223007,1764552641128,-190.049758,0.00013268,2]
[395223009,1764552641138,-541.61802765,0.00013268,2]
[395223011,1764552641147,-500.0,0.00013268,2]
[395223013,1764552641156,-402.79280936,0.00013268,2]
[395223015,1764552641167,-500.0,0.00013268,2]
[395223017,1764552641176,-500.0,0.00013268,2]
[395223019,1764552641186,-169.708667,0.00013268,2]
[395223021,1764552641196,-500.0,0.00013268,2]
[395223023,1764552641205,-500.0,0.00013268,2]
[395223025,1764552641214,-574.00543251,0.00013268,2]
[395223027,1764552641223,-785.51,0.00013268,2]
[395223029,1764552641232,-500.0,0.00013268,2]
[395223031,1764552641240,-500.0,0.00013268,2]
[395223032,1764552641249,-500.0,0.00013268,2]
[395223034,1764552641258,-500.0,0.00013268,2]
[395223036,1764552641267,-500.0,0.00013268,2]
[395223038,1764552641276,-503.4026731,0.00013268,2]
[395223040,1764552641285,-500.0,0.00013268,2]
[395223042,1764552641295,-500.0,0.00013268,2]
[395223044,1764552641304,-4884.16,0.00013268,2]
[395223046,1764552641314,-500.0,0.00013268,2]
[395223048,1764552641323,-500.0,0.00013268,2]
[395223050,1764552641333,-1091.51,0.00013268,2]
[395223052,1764552641342,-599.64,0.00013268,2]
[395223054,1764552641352,-500.0,0.00013268,2]
[395223056,1764552641361,-500.0,0.00013268,2]
[395223058,1764552641370,-1869.01,0.00013268,2]
[395223059,1764552641379,-501.98900014,0.00013268,2]
[395223060,1764552641389,-501.03712793,0.00013268,2]
[395223061,1764552641399,-500.0,0.00013268,2]
[395223062,1764552641409,-500.43708773,0.00013268,2]
[395223063,1764552641418,-500.0,0.00013268,2]
[395223064,1764552641427,-995.18,0.00013268,2]
[395223065,1764552641439,-500.0,0.00013268,2]
[395223066,1764552641448,-500.0,0.00013268,2]
[395223067,1764552641458,-500.0,0.00013268,2]
[395223068,1764552641468,-1556.6,0.00013268,2]
[395223069,1764552641477,-500.0,0.00013268,2]
[395223070,1764552641486,-1453.5,0.00013268,2]
[395223071,1764552641496,-500.0,0.00013268,2]
[395223072,1764552641505,-500.0,0.00013268,2]
[395223073,1764552641515,-501.41204755,0.00013268,2]
[395223074,1764552641524,-500.0,0.00013268,2]
[395223075,1764552641534,-500.0,0.00013268,2]
[395223076,1764552641543,-501.80622133,0.00013268,2]
[395223077,1764552641553,-500.0,0.00013268,2]
[395223078,1764552641562,-500.0,0.00013268,2]
[395223079,1764552641571,-338.09378582,0.00013268,2]
[395223080,1764552641581,-500.0,0.00013268,2]
[395223081,1764552641591,-612.27,0.00013268,2]
[395223082,1764552641600,-593.69,0.00013268,2]
[395223083,1764552641610,-500.0,0.00013268,2]
[395223084,1764552641619,-500.0,0.00013268,2]
[395223085,1764552641628,-5413.8,0.00013268,2]
[395223086,1764552641637,-500.0,0.00013268,2]
[395223087,1764552641647,-500.0,0.00013268,2]
[395223088,1764552641657,-500.0,0.00013268,2]
[395223089,1764552641666,-500.0,0.00013268,2]
[395223090,1764552641675,-1389.74,0.00013268,2]
[395223091,1764552641688,-500.0,0.00013268,2]
[395223092,1764552641697,-1460.61,0.00013268,2]
[395223093,1764552641707,-500.0,0.00013268,2]
[395223094,1764552641718,-500.0,0.00013268,2]
[395223095,1764552641727,-502.04579033,0.00013268,2]
[395223096,1764552641737,-500.0,0.00013268,2]
[395223098,1764552641747,-796.5,0.00013268,2]
[395223099,1764552641757,-1362.46,0.00013268,2]
[395223101,1764552641766,-500.0,0.00013268,2]
[395223103,1764552641775,-500.0,0.00013268,2]
[395223105,1764552641784,-500.0,0.00013268,2]
[395223107,1764552641793,-500.0,0.00013268,2]
[395223109,1764552641803,-509.63,0.00013268,2]
[395223110,1764552641813,-2756.41,0.00013268,2]
[395223112,1764552641823,-3367.83,0.00013268,2]
[395223114,1764552641832,-500.0,0.00013268,2]
[395223116,1764552641842,-500.0,0.00013268,2]
[395223118,1764552641851,-500.0,0.00013268,2]
[395223120,1764552641861,-500.0,0.00013268,2]
[395223122,1764552641870,-500.0,0.00013268,2]
[395223124,1764552641880,-561.94,0.00013268,2]
[395223126,1764552641889,-500.0,0.00013268,2]
[395223128,1764552641898,-500.0,0.00013268,2]
[395223130,1764552641907,-504.2363194,0.00013268,2]
[395223132,1764552641916,-151.0,0.00013268,2]
[395223134,1764552641925,-504.46248568,0.00013268,2]
[395223136,1764552641936,-151.0,0.00013268,2]
[395223138,1764552641946,-500.0,0.00013268,2]
[395223140,1764552641955,-685.65,0.00013268,2]
[395223142,1764552641964,-500.0,0.00013268,2]
[395223144,1764552641974,-500.0,0.00013268,2]
[395223146,1764552641983,-1869.66,0.00013268,2]
[395223148,1764552641992,-501.4210452,0.00013268,2]
[395223150,1764552642002,-500.0,0.00013268,2]
[395223152,1764552642011,-270.81713389,0.00013268,2]
[395223155,1764552642021,-500.0,0.00013268,2]
[395223156,1764552642030,-151.0,0.00013268,2]
[395223158,1764552642039,-925.73,0.00013268,2]
[395223160,1764552642049,-506.54,0.00013268,2]
[395223162,1764552642058,-5275.84,0.00013268,2]
[395223164,1764552642067,-500.0,0.00013268,2]
[395223166,1764552642077,-500.0,0.00013268,2]
[395223168,1764552642097,-1559.65,0.00013268,2]
[395223170,1764552642111,-500.0,0.00013268,2]
[395223172,1764552642122,-500.0,0.00013268,2]
[395223174,1764552642132,-500.72929821,0.00013268,2]
[395223176,1764552642142,-1941.5,0.00013268,2]
[395223178,1764552642152,-500.0,0.00013268,2]
[395223180,1764552642161,-500.0,0.00013268,2]
[395223182,1764552642170,-3139.45,0.00013268,2]
[395223184,1764552642183,-500.0,0.00013268,2]
[395223186,1764552642193,-500.0,0.00013268,2]
[395223188,1764552642203,-775.56,0.00013268,2]
[395223190,1764552642211,-1784.02,0.00013268,2]
[395223192,1764552642221,-2369.46,0.00013268,2]
[395223194,1764552642231,-2885.52,0.00013268,2]
[395223196,1764552642240,-500.0,0.00013268,2]
[395223198,1764552642250,-500.0,0.00013268,2]
[395223200,1764552642259,-500.0,0.00013268,2]
[395223203,1764552642269,-500.0,0.00013268,2]
[395223204,1764552642279,-457.67598157,0.00013268,2]
[395223206,1764552642288,-500.0,0.00013268,2]
[395223208,1764552642297,-3374.96,0.00013268,2]
[395223210,1764552642309,-500.0,0.00013268,2]
[395223212,1764552642318,-500.0,0.00013268,2]
[395223214,1764552642327,-500.0,0.00013268,2]
[395223216,1764552642337,-301.03076821,0.00013268,2]
[395223218,1764552642346,-209.97796445,0.00013268,2]
[395223220,1764552642356,-1482.63,0.00013268,2]
[395223222,1764552642365,-500.0,0.00013268,2]
[395223225,1764552642375,-500.0,0.00013268,2]
[395223227,1764552642384,-294.11797187,0.00013268,2]
[395223229,1764552642394,-500.0,0.00013268,2]
[395223231,1764552642403,-500.0,0.00013268,2]
[395223233,1764552642412,-500.0,0.00013268,2]
[395223235,1764552642422,-715.01,0.00013268,2]
[395223236,1764552642433,-643.15,0.00013268,2]
[395223238,1764552642442,-500.0,0.00013268,2]
[395223241,1764552642453,-1665.94,0.00013268,2]
[395223243,1764552642462,-500.0,0.00013268,2]
[395223245,1764552642471,-597.25,0.00013268,2]
[395223247,1764552642480,-500.0,0.00013268,2]
[395223249,1764552642490,-500.0,0.00013268,2]
[395223251,1764552642498,-500.0,0.00013268,2]
[395223253,1764552642508,-500.0,0.00013268,2]
[395223255,1764552642517,-16851.47,0.00013268,2]
[395223257,1764552642526,-500.0,0.00013268,2]
[395223259,1764552642536,-500.0,0.00013268,2]
[395223261,1764552642545,-500.0,0.00013268,2]
[395223263,1764552642554,-500.0,0.00013268,2]
[395223265,1764552642563,-502.16731529,0.00013268,2]
[395223267,1764552642572,-2083.6,0.00013268,2]
[395223269,1764552642581,-500.0,0.00013269,2]
[395223271,1764552642590,-754.19,0.00013269,2]
[395223273,1764552642599,-230.44009467,0.00013269,2]
[395223275,1764552642609,-500.0,0.00013269,2]
[395223277,1764552642623,-337.22232705,0.00013269,2]
[395223279,1764552642632,-500.0,0.00013269,2]
[395223281,1764552642641,-500.0,0.00013269,2]
[395223283,1764552642651,-500.0,0.00013269,2]
[395223285,1764552642661,-500.0,0.00013269,2]
[395223287,1764552642671,-500.0,0.00013269,2]
[395223289,1764552642680,-500.0,0.00013269,2]
[395223291,1764552642690,-500.0,0.00013269,2]
[395223293,1764552642700,-500.0,0.00013269,2]
[395223295,1764552642709,-500.0,0.00013269,2]
[395223297,1764552642718,-500.0,0.00013269,2]
[395223299,1764552642728,-500.0,0.00013269,2]
[395223301,1764552642737,-500.0,0.00013269,2]
[395223303,1764552642746,-500.0,0.00013269,2]
[395223305,1764552642755,-500.0,0.00013269,2]
[395223307,1764552642765,-500.0,0.00013269,2]
[395223309,1764552642775,-500.0,0.00013269,2]
[395223311,1764552642785,-500.0,0.00013269,2]
[395223313,1764552642794,-500.0,0.00013269,2]
[395223315,1764552642803,-219.08849563,0.00013269,2]
[395223317,1764552642813,-500.0,0.00013269,2]
[395223319,1764552642822,-500.0,0.00013269,2]
[395223321,1764552642831,-500.0,0.00013269,2]
[395223323,1764552642840,-524.67960334,0.00013269,2]
[395223325,1764552642849,-500.0,0.00013269,2]
[395223327,1764552642858,-500.0,0.00013269,2]
[395223329,1764552642867,-500.0,0.00013269,2]
[395223331,1764552642876,-500.0,0.00013269,2]
[395223333,1764552642885,-500.0,0.00013269,2]
[395223335,1764552642895,-500.0,0.00013269,2]
[395223337,1764552642904,-451.13704812,0.00013269,2]
[395223339,1764552642915,-500.0,0.00013269,2]
[395223341,1764552642925,-500.0,0.00013269,2]
[395223343,1764552642935,-500.0,0.00013269,2]
[395223345,1764552642945,-500.0,0.00013269,2]
[395223347,1764552642954,-500.0,0.00013269,2]
[395223349,1764552642964,-500.0,0.00013269,2]
[395223351,1764552642973,-409.42785629,0.00013269,2]
[395223353,1764552642982,-500.0,0.00013269,2]
[395223355,1764552642991,-500.0,0.00013269,2]
[395223357,1764552643001,-500.0,0.00013269,2]
[395223359,1764552643010,-500.0,0.00013269,2]
[395223361,1764552643020,-500.0,0.00013269,2]
[395223365,1764552643029,-500.0,0.00013269,2]
[395223368,1764552643039,-500.0,0.00013269,2]
[395223371,1764552643049,-500.0,0.00013269,2]
[395223373,1764552643058,-500.0,0.00013269,2]
[395223376,1764552643068,-500.0,0.00013269,2]
[395223378,1764552643078,-500.0,0.00013269,2]
[395223380,1764552643087,-607.83,0.00013269,2]
[395223382,1764552643101,-500.0,0.00013269,2]
[395223384,1764552643110,-500.0,0.00013269,2]
[395223386,1764552643119,-500.0,0.00013269,2]
[395223389,1764552643130,-500.0,0.00013269,2]
[395223392,1764552643141,-500.0,0.00013269,2]
[395223394,1764552643151,-500.0,0.00013269,2]
[395223396,1764552643160,-500.0,0.00013269,2]
[395223398,1764552643173,-500.0,0.00013269,2]
[395223400,1764552643184,-500.0,0.00013269,2]
[395223402,1764552643193,-500.0,0.00013269,2]
[395223404,1764552643202,-500.0,0.00013269,2]
[395223406,1764552643211,-500.0,0.00013269,2]
[395223408,1764552643220,-523.01429268,0.00013269,2]
[395223410,1764552643232,-500.0,0.00013269,2]
[395223412,1764552643242,-500.0,0.00013269,2]
[395223414,1764552643251,-151.0,0.00013269,2]
[395223416,1764552643261,-151.0,0.00013269,2]
[395223418,1764552643270,-151.0,0.00013269,2]
[395223420,1764552643280,-500.0,0.00013269,2]
[395223422,1764552643290,-500.0,0.00013269,2]
[395223424,1764552643299,-500.0,0.00013269,2]
[395223426,1764552643309,-514.58132288,0.00013269,2]
[395223428,1764552643318,-500.0,0.00013269,2]
[395223431,1764552643328,-257.835763,0.00013269,2]
[395223433,1764552643337,-500.0,0.00013269,2]
[395223435,1764552643346,-500.0,0.00013269,2]
[395223436,1764552643357,-500.0,0.00013269,2]
[395223439,1764552643368,-500.0,0.00013269,2]
[395223441,1764552643378,-500.0,0.00013269,2]
[395223443,1764552643387,-590.41439979,0.00013269,2]
[395223445,1764552643396,-435.71959835,0.00013269,2]
[395223447,1764552643405,-500.0,0.00013269,2]
[395223449,1764552643414,-500.69258079,0.00013269,2]
[395223451,1764552643422,-500.0,0.00013269,2]
[395223453,1764552643433,-500.0,0.00013269,2]
[395223455,1764552643443,-509.02638697,0.00013269,2]
[395223457,1764552643451,-500.0,0.00013269,2]
[395223459,1764552643462,-692.85,0.00013269,2]
[395223461,1764552643473,-500.0,0.00013269,2]
[395223463,1764552643482,-500.0,0.00013269,2]
[395223465,1764552643491,-500.0,0.00013269,2]
[395223467,1764552643501,-151.0,0.00013269,2]
[395223469,1764552643511,-190.804935,0.00013269,2]
[395223471,1764552643520,-500.0,0.00013269,2]
[395223473,1764552643530,-500.75529809,0.00013269,2]
[395223475,1764552643539,-500.0,0.00013269,2]
[395223477,1764552643548,-500.0,0.00013269,2]
[395223479,1764552643557,-500.0,0.00013269,2]
[395223481,1764552643566,-500.0,0.00013269,2]
[395223483,1764552643575,-500.0,0.00013269,2]
[395223485,1764552643584,-500.0,0.00013269,2]
[395223487,1764552643594,-272.08241859,0.00013269,2]
[395223489,1764552643603,-760.81,0.00013269,2]
[395223491,1764552643613,-500.0,0.00013269,2]
[395223493,1764552643622,-500.0,0.00013269,2]
[395223495,1764552643631,-500.0,0.00013269,2]
[395223497,1764552643640,-500.0,0.00013269,2]
[395223499,1764552643650,-500.0,0.00013269,2]
[395223501,1764552643660,-500.0,0.00013269,2]
[395223503,1764552643669,-500.0,0.00013269,2]
[395223505,1764552643679,-500.0,0.00013269,2]
[395223506,1764552643688,-500.0,0.00013269,2]
[395223509,1764552643699,-500.0,0.00013269,2]
[395223511,1764552643708,-502.56014956,0.00013269,2]
[395223513,1764552643718,-151.0,0.00013269,2]
[395223515,1764552643727,-500.0,0.00013269,2]
[395223517,1764552643737,-151.0,0.00013269,2]
[395223519,1764552643745,-253.054847,0.00013269,2]
[395223521,1764552643755,-253.054847,0.00013269,2]
[395223523,1764552643764,-500.0,0.00013269,2]
[395223525,1764552643773,-253.054847,0.00013269,2]
[395223527,1764552643782,-193.535059,0.00013269,2]
[395223529,1764552643791,-253.054847,0.00013269,2]
[395223530,1764552643800,-193.535059,0.00013269,2]
[395223532,1764552643810,-253.054847,0.00013269,2]
[395223534,1764552643819,-151.0,0.00013269,2]
[395223536,1764552643828,-193.535059,0.00013269,2]
[395223538,1764552643837,-253.054847,0.00013269,2]
[395223541,1764552643847,-193.535059,0.00013269,2]
[395223545,1764552643857,-563.32782679,0.00013269,2]
[395223548,1764552643866,-253.054847,0.00013269,2]
[395223551,1764552643875,-193.535059,0.00013269,2]
[395223553,1764552643885,-253.054847,0.00013269,2]
[395223555,1764552643894,-193.535059,0.00013269,2]
[395223557,1764552643903,-500.0,0.00013269,2]
[395223559,1764552643912,-500.0,0.00013269,2]
[395223561,1764552643921,-193.535059,0.00013269,2]
[395223563,1764552643932,-193.535059,0.00013269,2]
[395223565,1764552643943,-151.0,0.00013269,2]
[395223584,1764552644116,-151.0,0.00013269,2]
[395223586,1764552644127,-500.0,0.00013269,2]
[395223588,1764552644136,-500.0,0.00013269,2]
[395223590,1764552644145,-500.0,0.00013269,2]
[395223592,1764552644154,-230.69604922,0.00013269,2]
[395223594,1764552644164,-1841.0,0.00013269,2]
[395223596,1764552644174,-736.57,0.00013269,2]
[395223598,1764552644185,-500.0,0.00013269,2]
[395223600,1764552644194,-500.0,0.00013269,2]
[395223602,1764552644203,-500.0,0.00013269,2]
[395223604,1764552644212,-500.0,0.00013269,2]
[395223606,1764552644221,-177.06145279,0.00013269,2]
[395223608,1764552644230,-151.0,0.00013269,2]
[395223610,1764552644240,-500.0,0.00013269,2]
[395223612,1764552644249,-500.0,0.00013269,2]
[395223614,1764552644258,-500.0,0.00013269,2]
[395223616,1764552644267,-632.81439174,0.00013269,2]
[395223618,1764552644276,-500.0,0.00013269,2]
[395223620,1764552644287,-500.0,0.00013269,2]
[395223622,1764552644296,-500.0,0.00013269,2]
[395223624,1764552644306,-151.0,0.00013269,2]
[395223626,1764552644315,-500.0,0.00013269,2]
[395223628,1764552644324,-151.0,0.00013269,2]
[395223630,1764552644334,-151.0,0.00013269,2]
[395223632,1764552644343,-151.0,0.00013269,2]
[395223634,1764552644353,-206.95464703,0.00013269,2]
[395223636,1764552644362,-500.0,0.00013269,2]
[395223638,1764552644372,-500.0,0.00013269,2]
[395223640,1764552644382,-500.0,0.00013269,2]
[395223642,1764552644391,-500.0,0.00013269,2]
[395223644,1764552644402,-500.0,0.00013269,2]
[395223646,1764552644411,-500.0,0.00013269,2]
[395223648,1764552644420,-500.0,0.00013269,2]